fUST/lending_fUST_20251115
["ID","MTS","AMOUNT","RATE_DAILY","PERIOD"]
[394004839,1763172691239,-411.06172933,0.00053698,2]
[394004840,1763172691248,-1015.1,0.00053698,120]
[394004841,1763172691257,-500.0,0.00053698,120]
[394004842,1763172691267,-500.0,0.00053698,120]
[394004843,1763172691276,-500.0,0.00053698,120]
[394004844,1763172691286,-525.42,0.00053698,120]
[394004845,1763172691295,-500.0,0.00053698,120]
[394004846,1763172691305,-500.0,0.00053698,120]
[394004847,1763172691314,-533.64,0.00053698,120]
[394004848,1763172691324,-927.9,0.00053698,120]
[394004849,1763172691333,-500.0,0.00053698,120]
[394004850,1763172691343,-587.79623632,0.00053698,120]
[394004851,1763172691352,-500.0,0.00053698,120]
[394004852,1763172691362,-500.0,0.00053698,120]
[394004853,1763172691371,-745.41,0.00053698,120]
[394004854,1763172691380,-500.0,0.00053698,120]
[394004855,1763172691389,-500.0,0.00053698,120]
[394004856,1763172691398,-500.0,0.00053698,120]
[394004857,1763172691407,-1077.77,0.00053698,120]
[394004858,1763172691416,-500.0,0.00053698,120]
[394004859,1763172691425,-500.0,0.00053698,120]
[394004860,1763172691434,-500.0,0.00053698,120]
[394004861,1763172691444,-500.0,0.00053698,120]
[394004862,1763172691452,-624.67,0.00053698,120]
[394004863,1763172691462,-551.58,0.00053698,120]
[394004864,1763172691471,-500.0,0.00053698,120]
[394004865,1763172691483,-1776.75,0.00053698,120]
[394004866,1763172691493,-500.0,0.00053698,120]
[394004867,1763172691502,-577.74,0.00053698,120]
[394004868,1763172691511,-958.77,0.00053698,120]
[394004869,1763172691521,-500.0,0.00053698,120]
[394004870,1763172691531,-500.0,0.00053698,120]
[394004871,1763172691540,-4568.1,0.00053698,3]
[394004872,1763172691550,-500.0,0.00053698,120]
[394004873,1763172691559,-500.0,0.00053698,120]
[394004874,1763172691568,-500.0,0.00053698,120]
[394004875,1763172691578,-500.0,0.00053698,120]
[394004876,1763172691587,-505.96281872,0.00053698,120]
[394004877,1763172691597,-500.0,0.00053698,120]
[394004878,1763172691606,-500.0,0.00053698,120]
[394004879,1763172691615,-500.0,0.00053698,30]
[394004880,1763172691624,-500.0,0.00053698,120]
[394004881,1763172691633,-1165.61,0.00053698,120]
[394004882,1763172691642,-694.38,0.00053698,120]
[394004883,1763172691651,-500.0,0.00053698,21]
[394004884,1763172691661,-849.34,0.00053698,120]
[394004885,1763172691670,-1012.59,0.00053698,120]
[394004886,1763172691679,-500.0,0.00053698,10]
[394004887,1763172691687,-500.0,0.00053698,120]
[394004888,1763172691697,-1298.83,0.00053698,120]
[394004889,1763172691706,-647.88,0.00053698,120]
[394004890,1763172691715,-500.0,0.00053698,120]
[394004891,1763172691724,-1236.1,0.00053698,120]
[394004892,1763172691734,-500.0,0.00053698,120]
[394004893,1763172691743,-500.0,0.00053698,120]
[394004894,1763172691752,-617.48,0.00053698,120]
[394004895,1763172691761,-500.0,0.00053698,120]
[394004896,1763172691771,-500.0,0.00053698,120]
[394004897,1763172691780,-1133.68,0.00053698,120]
[394004898,1763172691790,-500.0,0.00053698,120]
[394004899,1763172691799,-500.0,0.00053698,120]
[394004900,1763172691808,-1584.66,0.00053698,120]
[394004901,1763172691817,-500.0,0.00053698,120]
[394004902,1763172691827,-500.0,0.00053698,120]
[394004903,1763172691836,-518.73337965,0.00053698,120]
[394004904,1763172691845,-1059.33,0.00053698,120]
[394004905,1763172691855,-500.0,0.00053698,120]
[394004906,1763172691864,-500.0,0.00053698,120]
[394004907,1763172691873,-500.0,0.00053698,120]
[394004908,1763172691882,-500.0,0.00053698,120]
[394004909,1763172691891,-1158.62,0.00053698,120]
[394004910,1763172691901,-500.0,0.00053698,120]
[394004911,1763172691911,-4088.64,0.00053698,120]
[394004912,1763172691920,-500.0,0.00053698,120]
[394004913,1763172691929,-500.0,0.00053698,120]
[394004914,1763172691938,-500.0,0.00053698,120]
[394004915,1763172691948,-1137.07,0.00053698,120]
[394004916,1763172691957,-522.16,0.00053698,120]
[394004917,1763172691966,-652.53,0.00053698,120]
[394004918,1763172691976,-500.0,0.00053698,120]
[394004919,1763172691985,-777.42,0.00053698,120]
[394004920,1763172691995,-500.0,0.00053698,120]
[394004921,1763172692004,-500.0,0.00053698,120]
[394004922,1763172692014,-500.0,0.00053698,120]
[394004923,1763172692023,-500.0,0.00053698,120]
[394004924,1763172692032,-2806.11,0.00053698,120]
[394004925,1763172692042,-500.0,0.00053698,120]
[394004926,1763172692051,-500.0,0.00053698,120]
[394004927,1763172692060,-823.53,0.00053698,120]
[394004928,1763172692070,-546.25,0.00053698,120]
[394004929,1763172692079,-1022.54,0.00053698,120]
[394004930,1763172692088,-500.0,0.00053698,120]
[394004931,1763172692097,-1369.59,0.00053698,120]
[394004932,1763172692107,-520.15,0.00053698,120]
[394004933,1763172692116,-500.0,0.00053698,120]
[394004934,1763172692125,-504.46,0.00053698,120]
[394004935,1763172692135,-500.0,0.00053698,120]
[394004936,1763172692144,-500.0,0.00053698,120]
[394004937,1763172692154,-664.41,0.00053698,120]
[394004938,1763172692164,-500.0,0.00053698,120]
[394004939,1763172692173,-500.0,0.00053698,120]
[394004940,1763172692182,-631.34,0.00053698,120]
[394004941,1763172692191,-500.0,0.00053698,120]
[394004942,1763172692201,-596.09,0.00053698,120]
[394004943,1763172692210,-500.0,0.00053698,120]
[394004944,1763172692219,-503.12803069,0.00053698,120]
[394004945,1763172692229,-1203.61,0.00053698,120]
[394004946,1763172692239,-502.13115184,0.00053698,120]
[394004947,1763172692248,-877.29,0.00053698,120]
[394004948,1763172692258,-500.0,0.00053698,120]
[394004949,1763172692267,-1000.0,0.00053698,2]
[394004950,1763172692277,-159.0,0.000537,120]
[394004951,1763172692287,-600.0,0.00053899,2]
[394004952,1763172692296,-500.0,0.00053972,120]
[394004953,1763172692306,-500.0,0.00053972,120]
[394004954,1763172692315,-567.38479503,0.00053972,120]
[394004955,1763172692324,-503.37740278,0.00053972,120]
[394004956,1763172692334,-404.94181294,0.00053972,120]
[394004957,1763172692343,-397.98068458,0.00053972,120]
[394004958,1763172692352,-609.02,0.00053972,120]
[394004959,1763172692362,-500.0,0.00053972,120]
[394004960,1763172692371,-500.0,0.00053972,120]
[394004961,1763172692380,-500.0,0.00053972,120]
[394004962,1763172692389,-262.16332396,0.00053972,120]
[394004963,1763172692398,-500.0,0.00053972,120]
[394004964,1763172692407,-500.0,0.00053972,120]
[394004965,1763172692417,-500.0,0.00053972,120]
[394004966,1763172692426,-649.89,0.00053972,120]
[394004967,1763172692435,-536.65,0.00053972,120]
[394004968,1763172692445,-500.0,0.00053972,120]
[394004969,1763172692454,-500.0,0.00053972,120]
[394004970,1763172692463,-500.0,0.00053972,120]
[394004971,1763172692472,-500.0,0.00053972,120]
[394004972,1763172692486,-500.0,0.00053972,120]
[394004973,1763172692495,-759.32,0.00053972,120]
[394004974,1763172692505,-500.0,0.00053972,120]
[394004975,1763172692514,-500.0,0.00053972,120]
[394004976,1763172692524,-554.45,0.00053972,120]
[394004977,1763172692534,-221.6,0.00053972,120]
[394004978,1763172692543,-629.47,0.00053972,120]
[394004979,1763172692553,-500.0,0.00053972,120]
[394004980,1763172692562,-500.0,0.00053972,120]
[394004981,1763172692571,-500.0,0.00053972,120]
[394004982,1763172692580,-500.0,0.00053972,120]
[394004983,1763172692589,-500.0,0.00053972,120]
[394004984,1763172692599,-509.19706916,0.00053972,120]
[394004985,1763172692608,-790.87,0.00053972,120]
[394004986,1763172692617,-582.92,0.00053972,120]
[394004987,1763172692626,-500.0,0.00053972,120]
[394004988,1763172692635,-590.85,0.00053972,120]
[394004989,1763172692644,-500.0,0.00053972,120]
[394004990,1763172692653,-673.94,0.00053972,120]
[394004991,1763172692662,-500.0,0.00053972,120]
[394004992,1763172692671,-500.0,0.00053972,120]
[394004993,1763172692680,-500.0,0.00053972,120]
[394004994,1763172692690,-1000.0,0.00053972,2]
[394004995,1763172692699,-544.93,0.00053972,120]
[394004996,1763172692708,-500.0,0.00053972,120]
[394004997,1763172692717,-500.0,0.00053972,120]
[394004998,1763172692726,-500.0,0.00053972,120]
[394004999,1763172692735,-571.3,0.00053972,120]
[394005000,1763172692744,-500.0,0.00053972,120]
[394005001,1763172692753,-1377.81,0.00053972,7]
[394005002,1763172692762,-618.7,0.00053972,120]
[394005003,1763172692771,-500.0,0.00053972,120]
[394005004,1763172692780,-655.84,0.00053972,120]
[394005005,1763172692789,-500.0,0.00053972,120]
[394005006,1763172692798,-500.0,0.00053972,120]
[394005007,1763172692808,-3400.85,0.00053972,2]
[394005008,1763172692818,-507.65,0.00053972,2]
[394005009,1763172692827,-198.93489261,0.00053972,120]
[394005010,1763172692836,-566.68,0.00053972,120]
[394005011,1763172692846,-500.0,0.00053972,120]
[394005012,1763172692855,-505.46,0.00053972,120]
[394005013,1763172692864,-1174.97,0.00053972,120]
[394005014,1763172692874,-303.48867783,0.00053972,120]
[394005015,1763172692883,-551.68,0.00053972,120]
[394005016,1763172692892,-566.44,0.00053972,120]
[394005017,1763172692901,-500.0,0.00053972,120]
[394005018,1763172692914,-687.74,0.00053972,120]
[394005019,1763172692923,-500.0,0.00053972,120]
[394005020,1763172692932,-500.0,0.00053972,120]
[394005021,1763172692941,-500.0,0.00053972,120]
[394005022,1763172692950,-507.82628518,0.00053972,120]
[394005023,1763172692959,-218.80079294,0.00053972,120]
[394005024,1763172692968,-500.0,0.00053972,120]
[394005025,1763172692977,-500.0,0.00053972,120]
[394005026,1763172692986,-500.0,0.00053972,120]
[394005027,1763172692996,-646.85,0.00053972,120]
[394005028,1763172693006,-500.0,0.00053972,120]
[394005029,1763172693015,-500.0,0.00053972,120]
[394005030,1763172693025,-812.44,0.00053972,2]
[394005031,1763172693034,-580.02,0.00053972,120]
[394005032,1763172693043,-500.0,0.00053972,120]
[394005033,1763172693052,-757.32,0.00053972,120]
[394005034,1763172693062,-506.21,0.00053972,120]
[394005035,1763172693071,-500.0,0.00053972,120]
[394005036,1763172693081,-500.0,0.00053972,120]
[394005037,1763172693092,-1011.89,0.00053972,120]
[394005038,1763172693102,-500.0,0.00053972,120]
[394005039,1763172693112,-500.0,0.00053972,120]
[394005040,1763172693121,-875.77,0.00053972,120]
[394005041,1763172693131,-785.26,0.00053972,120]
[394005042,1763172693140,-500.0,0.00053972,120]
[394005043,1763172693149,-500.0,0.00053972,120]
[394005044,1763172693160,-829.99,0.00053972,120]
[394005045,1763172693170,-500.0,0.00053972,120]
[394005046,1763172693179,-526.24497896,0.00053972,120]
[394005047,1763172693188,-500.0,0.00053972,120]
[394005048,1763172693198,-500.0,0.00053972,120]
[394005049,1763172693207,-562.45275085,0.00053972,120]
[394005050,1763172693217,-500.0,0.00053972,120]
[394005051,1763172693227,-500.0,0.00053972,120]
[394005052,1763172693235,-500.0,0.00053972,120]
[394005053,1763172693245,-546.38,0.00053972,120]
[394005054,1763172693255,-500.0,0.00053972,120]
[394005055,1763172693264,-604.95,0.00053972,120]
[394005056,1763172693274,-709.64,0.00053972,2]
[394005057,1763172693283,-564.94,0.00053972,120]
[394005058,1763172693293,-1119.68,0.00053972,120]
[394005059,1763172693301,-500.0,0.00053972,120]
[394005060,1763172693311,-531.60131908,0.00053972,7]
[394005061,1763172693319,-500.0,0.00053972,120]
[394005062,1763172693328,-1259.05,0.00053972,120]
[394005063,1763172693338,-500.0,0.00053972,120]
[394005064,1763172693347,-955.73,0.00053972,120]
[394005065,1763172693356,-865.15,0.00053972,120]
[394005066,1763172693535,-500.0,0.00053972,120]
[394005067,1763172693545,-500.0,0.00053972,120]
[394005068,1763172693561,-500.0,0.00053972,120]
[394005069,1763172693574,-500.0,0.00053972,120]
[394005070,1763172693584,-500.0,0.00053972,120]
[394005071,1763172693593,-500.0,0.00053972,120]
[394005072,1763172693603,-500.0,0.00053972,120]
[394005073,1763172693613,-500.0,0.00053972,120]
[394005074,1763172693623,-235.64987727,0.00053972,120]
[394005075,1763172693632,-500.0,0.00053972,120]
[394005076,1763172693642,-504.03717709,0.00053972,120]
[394005077,1763172693651,-500.0,0.00053972,120]
[394005078,1763172693662,-500.0,0.00053972,120]
[394005079,1763172693672,-500.0,0.00053972,120]
[394005080,1763172693682,-633.63729149,0.00053972,120]
[394005081,1763172693692,-776.15,0.00053972,120]
[394005082,1763172693703,-515.28,0.00053972,120]
[394005083,1763172693712,-500.0,0.00053972,120]
[394005084,1763172693722,-500.0,0.00053972,120]
[394005085,1763172693732,-500.0,0.00053972,120]
[394005086,1763172693743,-500.0,0.00053972,120]
[394005087,1763172693752,-500.0,0.00053972,120]
[394005088,1763172693762,-500.0,0.00053972,120]
[394005089,1763172693772,-500.0,0.00053972,120]
[394005090,1763172693781,-777.19,0.00053972,120]
[394005091,1763172693791,-500.0,0.00053972,120]
[394005092,1763172693801,-500.0,0.00053972,120]
[394005093,1763172693811,-500.0,0.00053972,2]
[394005094,1763172693821,-500.0,0.00053972,120]
[394005095,1763172693830,-500.0,0.00053972,120]
[394005096,1763172693839,-500.0,0.00053972,120]
[394005097,1763172693849,-629.76,0.00053972,120]
[394005098,1763172693859,-646.13,0.00053972,120]
[394005099,1763172693869,-288.27770733,0.00053972,120]
[394005100,1763172693879,-626.26,0.00053972,120]
[394005101,1763172693889,-500.0,0.00053972,120]
[394005102,1763172693898,-1152.15,0.00053972,120]
[394005103,1763172693911,-500.0,0.00053972,120]
[394005104,1763172693921,-500.0,0.00053972,120]
[394005105,1763172693931,-500.0,0.00053972,120]
[394005106,1763172693941,-1477.9,0.00053972,120]
[394005107,1763172693951,-500.0,0.00053972,120]
[394005108,1763172693961,-500.0,0.00053972,120]
[394005109,1763172693972,-500.0,0.00053972,120]
[394005110,1763172693982,-500.0,0.00053972,120]
[394005111,1763172693991,-500.0,0.00053972,120]
[394005112,1763172694000,-937.06,0.00053972,120]
[394005113,1763172694010,-500.0,0.00053972,120]
[394005114,1763172694021,-500.0,0.00053972,120]
[394005115,1763172694031,-1619.88,0.00053972,30]
[394005116,1763172694041,-500.0,0.00053972,120]
[394005117,1763172694051,-539.7,0.00053972,120]
[394005118,1763172694060,-500.0,0.00053972,120]
[394005119,1763172694070,-500.0,0.00053972,120]
[394005120,1763172694080,-500.0,0.00053972,120]
[394005121,1763172694090,-539.17859762,0.00053972,120]
[394005122,1763172694100,-500.0,0.00053972,120]
[394005123,1763172694110,-500.0,0.00053972,120]
[394005124,1763172694120,-1298.65,0.00053972,120]
[394005125,1763172694130,-500.0,0.00053972,120]
[394005126,1763172694139,-500.0,0.00053972,120]
[394005127,1763172694149,-1188.94,0.00053972,120]
[394005128,1763172694160,-500.0,0.00053972,120]
[394005129,1763172694171,-500.0,0.00053972,120]
[394005130,1763172694180,-543.62796874,0.00053972,120]
[394005131,1763172694190,-500.0,0.00053972,120]
[394005132,1763172694200,-500.0,0.00053972,120]
[394005133,1763172694210,-500.0,0.00053972,120]
[394005134,1763172694219,-1000.0,0.00053972,30]
[394005135,1763172694229,-500.0,0.00053972,120]
[394005136,1763172694239,-500.0,0.00053972,120]
[394005137,1763172694248,-500.0,0.00053972,120]
[394005138,1763172694258,-839.73,0.00053972,120]
[394005139,1763172694267,-642.63733755,0.00053972,120]
[394005140,1763172694277,-500.0,0.00053972,120]
[394005141,1763172694287,-500.0,0.00053972,120]
[394005142,1763172694297,-557.41,0.00053972,120]
[394005143,1763172694306,-500.0,0.00053972,120]
[394005144,1763172694315,-500.0,0.00053972,120]
[394005145,1763172694325,-505.97,0.00053972,120]
[394005146,1763172694334,-500.0,0.00053972,120]
[394005147,1763172694344,-520.26,0.00053972,120]
[394005148,1763172694353,-769.66,0.00053972,120]
[394005149,1763172694363,-500.0,0.00053972,120]
[394005150,1763172694373,-500.0,0.00053972,120]
[394005151,1763172694382,-500.0,0.00053972,120]
[394005152,1763172694392,-500.0,0.00053972,120]
[394005153,1763172694402,-500.0,0.00053972,120]
[394005154,1763172694415,-500.0,0.00053972,120]
[394005155,1763172694424,-500.0,0.00053972,120]
[394005156,1763172694434,-500.0,0.00053972,120]
[394005157,1763172694443,-500.0,0.00053972,120]
[394005158,1763172694453,-500.0,0.00053972,120]
[394005159,1763172694463,-500.0,0.00053972,120]
[394005160,1763172694472,-500.0,0.00053972,120]
[394005161,1763172694486,-500.0,0.00053972,120]
[394005162,1763172694496,-629.45,0.00053972,120]
[394005163,1763172694505,-500.0,0.00053972,120]
[394005164,1763172694515,-500.0,0.00053972,120]
[394005165,1763172694525,-500.0,0.00053972,120]
[394005166,1763172694534,-500.0,0.00053972,120]
[394005167,1763172694544,-532.97,0.00053972,120]
[394005168,1763172694554,-527.42,0.00053972,120]
[394005169,1763172694564,-517.42,0.00053972,120]
[394005170,1763172694573,-1390.62,0.00053972,120]
[394005171,1763172694582,-500.0,0.00053972,120]
[394005172,1763172694592,-500.0,0.00053972,120]
[394005173,1763172694602,-500.0,0.00053972,120]
[394005174,1763172694611,-500.0,0.00053972,120]
[394005175,1763172694621,-500.0,0.00053972,120]
[394005176,1763172694630,-1276.71,0.00053972,120]
[394005177,1763172694640,-503.79473137,0.00053972,120]
[394005178,1763172694650,-948.59,0.00053972,120]
[394005179,1763172694660,-507.72,0.00053972,120]
[394005180,1763172694669,-500.0,0.00053972,120]
[394005181,1763172694679,-500.0,0.00053972,120]
[394005182,1763172694689,-500.0,0.00053972,120]
[394005183,1763172694698,-500.0,0.00053972,120]
[394005184,1763172694707,-747.42,0.00053972,120]
[394005185,1763172694717,-566.74,0.00053972,120]
[394005186,1763172694726,-500.0,0.00053972,120]
[394005187,1763172694735,-500.0,0.00053972,120]
[394005188,1763172694744,-1791.91,0.00053972,120]
[394005189,1763172694753,-500.0,0.00053972,120]
[394005190,1763172694762,-500.0,0.00053972,120]
[394005191,1763172694771,-500.0,0.00053972,120]
[394005192,1763172694780,-500.0,0.00053972,120]
[394005193,1763172694790,-500.0,0.00053972,120]
[394005194,1763172694799,-1017.14,0.00053972,120]
[394005195,1763172694807,-500.0,0.00053972,120]
[394005196,1763172694817,-500.0,0.00053972,120]
[394005197,1763172694826,-500.0,0.00053972,120]
[394005198,1763172694835,-936.67,0.00053972,120]
[394005199,1763172694844,-500.0,0.00053972,120]
[394005200,1763172694853,-500.0,0.00053972,120]
[394005201,1763172694862,-500.0,0.00053972,120]
[394005202,1763172694871,-523.97775665,0.00053972,120]
[394005203,1763172694880,-572.61,0.00053972,120]
[394005204,1763172694889,-500.0,0.00053972,120]
[394005205,1763172694899,-2708.03,0.00053972,120]
[394005206,1763172694909,-500.0,0.00053972,120]
[394005207,1763172694919,-500.0,0.00053972,120]
[394005208,1763172694928,-500.0,0.00053972,120]
[394005209,1763172694938,-500.0,0.00053972,120]
[394005210,1763172694947,-500.0,0.00053972,120]
[394005211,1763172694956,-500.0,0.00053972,120]
[394005212,1763172694966,-979.1,0.00053972,120]
[394005213,1763172694975,-550.26569467,0.00053972,120]
[394005214,1763172694985,-500.0,0.00053972,120]
[394005215,1763172694995,-500.0,0.00053972,120]
[394005216,1763172695004,-687.91,0.00053972,120]
[394005217,1763172695013,-777.09,0.00053972,120]
[394005218,1763172695022,-500.0,0.00053972,120]
[394005219,1763172695031,-1015.1,0.00053972,120]
[394005220,1763172695041,-500.0,0.00053972,120]
[394005221,1763172695050,-500.0,0.00053972,120]
[394005222,1763172695060,-500.0,0.00053972,120]
[394005223,1763172695070,-525.42,0.00053972,120]
[394005224,1763172695080,-500.0,0.00053972,120]
[394005225,1763172695089,-500.0,0.00053972,120]
[394005226,1763172695099,-533.64,0.00053972,120]
[394005227,1763172695108,-927.9,0.00053972,120]
[394005228,1763172695118,-231.35645162,0.00053972,120]
[394005229,1763172695128,-500.0,0.00053972,120]
[394005230,1763172695137,-500.0,0.00053972,120]
[394005231,1763172695147,-745.41,0.00053972,120]
[394005232,1763172695156,-500.0,0.00053972,120]
[394005233,1763172695166,-275.66054197,0.00053972,120]
[394005234,1763172695176,-500.0,0.00053972,120]
[394005235,1763172695186,-1077.77,0.00053972,120]
[394005236,1763172695195,-500.0,0.00053972,120]
[394005237,1763172695204,-500.0,0.00053972,120]
[394005238,1763172695213,-500.0,0.00053972,120]
[394005239,1763172695223,-500.0,0.00053972,120]
[394005240,1763172695233,-624.67,0.00053972,120]
[394005241,1763172695242,-551.58,0.00053972,120]
[394005242,1763172695252,-500.0,0.00053972,120]
[394005243,1763172695262,-1776.75,0.00053972,120]
[394005244,1763172695272,-500.0,0.00053972,120]
[394005245,1763172695281,-577.74,0.00053972,120]
[394005246,1763172695291,-958.77,0.00053972,120]
[394005247,1763172695299,-500.0,0.00053972,120]
[394005248,1763172695309,-500.0,0.00053972,120]
[394005249,1763172695318,-4568.1,0.00053972,3]
[394005250,1763172695327,-500.0,0.00053972,120]
[394005251,1763172695336,-500.0,0.00053972,120]
[394005252,1763172695345,-500.0,0.00053972,120]
[394005253,1763172695354,-500.0,0.00053972,120]
[394005254,1763172695364,-240.05668249,0.00053972,120]
[394005255,1763172695373,-500.0,0.00053972,120]
[394005256,1763172695382,-500.0,0.00053972,30]
[394005257,1763172695391,-500.0,0.00053972,120]
[394005258,1763172695400,-1165.61,0.00053972,120]
[394005259,1763172695410,-694.38,0.00053972,120]
[394005260,1763172695419,-500.0,0.00053972,21]
[394005261,1763172695428,-849.34,0.00053972,120]
[394005262,1763172695438,-1012.59,0.00053972,120]
[394005263,1763172695447,-272.44981714,0.00053972,10]
[394005264,1763172695456,-507.09790487,0.00053972,120]
[394005265,1763172695465,-1298.83,0.00053972,120]
[394005266,1763172695475,-647.88,0.00053972,120]
[394005267,1763172695488,-500.0,0.00053972,120]
[394005268,1763172695497,-1236.1,0.00053972,120]
[394005269,1763172695506,-500.0,0.00053972,120]
[394005270,1763172695515,-500.0,0.00053972,120]
[394005271,1763172695525,-617.48,0.00053972,120]
[394005272,1763172695534,-500.0,0.00053972,120]
[394005273,1763172695544,-500.0,0.00053972,120]
[394005274,1763172695555,-1133.68,0.00053972,120]
[394005275,1763172695564,-500.0,0.00053972,120]
[394005276,1763172695573,-500.0,0.00053972,120]
[394005277,1763172695583,-1584.66,0.00053972,120]
[394005278,1763172695594,-511.04311274,0.00053972,120]
[394005279,1763172695604,-500.0,0.00053972,120]
[394005280,1763172695613,-1059.33,0.00053972,120]
[394005281,1763172695623,-500.0,0.00053972,120]
[394005282,1763172695632,-505.81814621,0.00053972,120]
[394005283,1763172695641,-500.0,0.00053972,120]
[394005284,1763172695651,-500.0,0.00053972,120]
[394005285,1763172695661,-1158.62,0.00053972,120]
[394005286,1763172695670,-151.0,0.00053972,120]
[394005287,1763172695680,-500.0,0.00053972,120]
[394005288,1763172695689,-1253.127483,0.00053972,120]
[394005289,1763172695699,-153.317516,0.00053972,120]
[394005290,1763172695708,-1253.127483,0.00053972,120]
[394005291,1763172695718,-3903.70500786,0.00053972,120]
[394005292,1763172696104,-500.0,0.00052602,120]
[394005293,1763172696113,-184.93499214,0.00053972,120]
[394005294,1763172696123,-500.0,0.00053972,120]
[394005295,1763172696132,-1253.127483,0.00053972,120]
[394005296,1763172696142,-1253.127475,0.00053972,120]
[394005297,1763172696151,-500.0,0.00053972,120]
[394005298,1763172696160,-381.49022415,0.00053972,120]
[394005299,1763172696172,-118.50977585,0.00053972,120]
[394005300,1763172696183,-1137.07,0.00053972,120]
[394005301,1763172696193,-237.69325,0.00053972,30]
[394005302,1763172696203,-522.16,0.00053972,120]
[394005303,1763172696212,-652.53,0.00053972,120]
[394005304,1763172696222,-500.0,0.00053972,120]
[394005305,1763172696231,-777.42,0.00053972,120]
[394005306,1763172696240,-500.0,0.00053972,120]
[394005307,1763172696250,-500.0,0.00053972,120]
[394005308,1763172696259,-500.0,0.00053972,120]
[394005309,1763172696268,-500.0,0.00053972,120]
[394005310,1763172696278,-1198.08610944,0.00053972,120]
[394005311,1763172696289,-1608.02389056,0.00053972,120]
[394005312,1763172696299,-500.0,0.00053972,120]
[394005313,1763172696308,-500.0,0.00053972,120]
[394005314,1763172696317,-823.53,0.00053972,120]
[394005315,1763172696326,-546.25,0.00053972,120]
[394005316,1763172696336,-1022.54,0.00053972,120]
[394005317,1763172696344,-500.0,0.00053972,120]
[394005318,1763172696353,-1369.59,0.00053972,120]
[394005319,1763172696363,-520.15,0.00053972,120]
[394005320,1763172696372,-500.0,0.00053972,120]
[394005321,1763172696380,-504.46,0.00053972,120]
[394005322,1763172696390,-500.0,0.00053972,120]
[394005323,1763172696399,-500.0,0.00053972,120]
[394005324,1763172696408,-664.41,0.00053972,120]
[394005325,1763172696417,-500.0,0.00053972,120]
[394005326,1763172696426,-102.91126199,0.00053972,120]
[394005327,1763172696438,-397.08873801,0.00053972,120]
[394005328,1763172696447,-631.34,0.00053972,120]
[394005329,1763172696456,-500.0,0.00053972,120]
[394005330,1763172696465,-596.09,0.00053972,120]
[394005331,1763172696474,-500.0,0.00053972,120]
[394005332,1763172696488,-1203.61,0.00053972,120]
[394005333,1763172696497,-877.29,0.00053972,120]
[394005334,1763172696506,-44.96011944,0.00053972,120]
[394005335,1763172696519,-455.03988056,0.00053972,120]
[394005336,1763172696528,-50.79280359,0.00053972,2]
[394005337,1763172696539,-949.20719641,0.00053972,2]
[394005338,1763172696548,-1145.27019109,0.00053989,120]